fUST/lending_fUST_20260530
["ID","MTS","AMOUNT","RATE_DAILY","PERIOD"]
[423389820,1780075842000,-357.85,0.00012876,2]
[423389830,1780075842000,-1690.93,0.00013698,2]
[423389819,1780075842000,-192.33971171,0.000128,2]
[423389821,1780075842000,-1690.93,0.00012876,2]
[423389832,1780075842000,-473.66,0.00013698,2]
[423389825,1780075842000,-167.46391931,0.00013383,2]
[423389822,1780075842000,-500.0,0.00012876,2]
[423389826,1780075842000,-1690.93,0.00013424,2]
[423389823,1780075842000,-1690.93,0.0001315,2]
[423389824,1780075842000,-500.0,0.0001315,2]
[423389828,1780075842000,-500.0,0.00013424,2]
[423389834,1780075842000,-893.384766,0.00013699,2]
[423389836,1780075842000,-162.380719,0.00014163,2]
[423389839,1780075842000,-151.0,0.00014163,2]
[423389837,1780075842000,-500.0,0.00014163,2]
[423389840,1780075842000,-2199.5857306,0.00014184,2]
[423389838,1780075842000,-537.6845,0.00014163,2]
[423389843,1780075842000,-1690.93,0.00014246,2]
[423389842,1780075842000,-231.4977679,0.00014218,2]
[423389844,1780075842000,-359.9820018,0.00014473,2]
[423389841,1780075842000,-936.249548,0.00014184,2]
[423389845,1780075842000,-1691.11656147,0.0001452,2]
[423389781,1780075842000,-500.0,0.00010684,2]
[423389817,1780075842000,-500.0,0.00012602,2]
[423389815,1780075842000,-500.0,0.00012602,2]
[423389835,1780075842000,-1690.93,0.00013972,2]
[423389818,1780075842000,-192.33971171,0.000127,2]
[423389810,1780075842000,-500.0,0.00012328,2]
[423389789,1780075842000,-500.0,0.00010958,2]
[423389787,1780075842000,-500.0,0.00010958,2]
[423389784,1780075842000,-500.0,0.00010684,2]
[423389779,1780075842000,-534.72,0.0001041,2]
[423389788,1780075842000,-1690.93,0.00010958,2]
[423389786,1780075842000,-166.0,0.00010937,2]
[423389790,1780075842000,-500.0,0.00010958,2]
[423389792,1780075842000,-1690.93,0.00011232,2]
[423389791,1780075842000,-500.0,0.00011232,2]
[423389794,1780075842000,-500.0,0.00011232,2]
[423389805,1780075842000,-500.0,0.00012054,2]
[423389796,1780075842000,-1690.93,0.00011506,2]
[423389804,1780075842000,-14661.77953898,0.000119,2]
[423389783,1780075842000,-500.0,0.00010684,2]
[423389795,1780075842000,-500.0,0.00011506,2]
[423389846,1780075842000,-327.3320371,0.00014693,2]
[423389807,1780075842000,-500.0,0.00012054,2]
[423389813,1780075842000,-192.33971171,0.000125,2]
[423389793,1780075842000,-500.0,0.00011232,2]
[423389808,1780075842000,-204.43958724,0.00012218,2]
[423389802,1780075842000,-284.28999999,0.0001178,2]
[423389806,1780075842000,-1690.93,0.00012054,2]
[423389801,1780075842000,-1690.93,0.0001178,2]
[423389800,1780075842000,-500.0,0.0001178,2]
[423389797,1780075842000,-500.0,0.00011506,2]
[423389798,1780075842000,-500.0,0.00011506,2]
[423389799,1780075842000,-167.46391931,0.00011628,2]
[423389803,1780075842000,-500.0,0.0001178,2]
[423389848,1780075843000,-612.18037172,0.00014711,2]
[423389847,1780075843000,-505.90416522,0.00014711,2]
[423389849,1780075843000,-456.830407,0.00014747,2]
[423389857,1780075843000,-33018.24096,0.00015,2]
[423389858,1780075843000,-194241.23876346,0.00015,2]
[423389850,1780075843000,-456.293377,0.00014747,2]
[423389851,1780075843000,-552.345403,0.00014747,2]
[423389855,1780075843000,-910.49903707,0.0001486,5]
[423389853,1780075843000,-157.79160527,0.00014762,2]
[423389854,1780075843000,-500.0,0.00014805,2]
[423389856,1780075843000,-5036.35345002,0.000149,2]
[423389860,1780075843000,-5886.10477198,0.00015,2]
[423389859,1780075843000,-14855.0,0.00015,2]
[423389861,1780075843000,-380.36253887,0.00015,2]
[423389862,1780075843000,-1719.26634701,0.00015,2]
[423389852,1780075843000,-240.58620915,0.00014762,2]
[423389864,1780075844000,-259.14535789,0.00015,2]
[423389863,1780075844000,-1000.0,0.00015,2]
[423389878,1780075846000,-16106.02693378,0.00015,2]
[423389879,1780075847000,-39206.82461511,0.00015,2]
[423389880,1780075847000,-3463.16478485,0.00015,2]
[423390467,1780076409000,152.0,0.00020501,120]
[423390569,1780076604000,215.54586856,0.00014801,120]
[423390570,1780076607000,222.44511765,0.00014801,120]
[423390573,1780076661000,-5000.0,9.978e-05,2]
[423390572,1780076661000,-152.0,8.3e-05,7]
[423390574,1780076661000,-1023.0,0.00010079,2]
[423390581,1780076831000,1894.02134421,0.00020547,120]
[423390611,1780077029000,3502.668574,0.00020547,120]
[423390620,1780077033000,-214.06508692,0.0001109,2]
[423390613,1780077033000,-152.0,8.302e-05,7]
[423390614,1780077033000,-152.0,8.302e-05,7]
[423390616,1780077033000,-5000.0,8.999e-05,2]
[423390615,1780077033000,-5000.0,8.909e-05,2]
[423390618,1780077033000,-2.8334872,9.877e-05,2]
[423390617,1780077033000,-181.41109061,9.09e-05,2]
[423390619,1780077033000,-297.1665128,9.877e-05,2]
[423390621,1780077033000,-151.15,0.00012,2]
[423390629,1780077033000,-246.71908323,0.0001309,2]
[423390623,1780077033000,-616.38890483,0.000126,2]
[423390633,1780077033000,-222.44511765,0.00013652,2]
[423390631,1780077033000,-207.04912368,0.00013538,2]
[423390637,1780077033000,-98.84139848,0.00013699,2]
[423390635,1780077033000,-215.54586856,0.00013652,2]
[423390622,1780077033000,-616.38890483,0.000125,2]
[423390627,1780077033000,-130.17958323,0.00013,2]
[423390624,1780077033000,-616.38890483,0.000127,2]
[423390626,1780077033000,-486.2093216,0.00013,2]
[423390625,1780077033000,-616.38890483,0.000128,2]
[423390748,1780077039000,-5000.0,0.00013562,2]
[423390750,1780077039000,-174.11641149,0.00013699,2]
[423390749,1780077039000,-901.15860152,0.00013699,2]
[423390751,1780077039000,-446.692383,0.00013758,2]
[423390753,1780077039000,-456.830407,0.00013871,2]
[423390760,1780077039000,-222.44511765,0.00014637,60]
[423390752,1780077039000,-222.44511765,0.00013816,7]
[423390755,1780077039000,-222.44511765,0.00014144,14]
[423390757,1780077039000,-348.23282297,0.00014249,2]
[423390758,1780077039000,-222.44511765,0.00014308,30]
[423390761,1780077039000,-240.58620916,0.0001469,2]
[423390759,1780077039000,-222.44511765,0.00014473,60]
[423390754,1780077039000,-222.44511765,0.0001398,7]
[423390762,1780077039000,-621.14737105,0.0001469,2]
[423390763,1780077039000,-500.0,0.00014692,2]
[423390766,1780077039000,-500.0,0.00014692,2]
[423390765,1780077039000,-500.0,0.00014692,2]
[423390767,1780077039000,-500.0,0.00014692,2]
[423390768,1780077039000,-169.3849967,0.00014696,2]
[423390771,1780077039000,-110558.09463323,0.00014698,2]
[423390770,1780077039000,-94327.85908056,0.00014698,2]
[423390769,1780077039000,-8056.07594564,0.00014698,2]
[423390773,1780077039000,-43596.12847055,0.00014698,2]
[423390774,1780077039000,-2412.0,0.00014698,2]
[423390772,1780077039000,-62946.8939028,0.00014698,2]
[423390775,1780077039000,-33.69677667,0.00014698,2]
[423390756,1780077039000,-414.09824737,0.00014229,2]
[423390764,1780077039000,-500.0,0.00014692,2]
[423390787,1780077043000,-5220.00000036,0.00014698,2]
[423390791,1780077048000,-690.03316915,0.00014551,2]
[423390792,1780077048000,-1426.77944752,0.00014698,2]
[423390793,1780077048000,-2333.21759851,0.00014698,2]
[423390836,1780077255000,5000.0,8.01e-05,2]
[423390849,1780077439000,5000.0,8.01e-05,2]
[423390850,1780077460000,5000.0,8.01e-05,2]
[423390853,1780077482000,4828.54394949,8.01e-05,2]
[423390859,1780077569000,152.0,0.00020504,120]
[423390868,1780077638000,5000.0,8.01e-05,2]
[423390870,1780077653000,5000.0,8.01e-05,2]
[423390880,1780077675000,5000.0,8.01e-05,2]
[423390884,1780077692000,-570.7229727,8.102e-05,2]
[423390889,1780077708000,-473.26002164,8.102e-05,2]
[423390893,1780077725000,-26.73997836,8.102e-05,2]
[423390897,1780077742000,-500.0,8.102e-05,2]
[423390899,1780077759000,-500.0,8.102e-05,2]
[423390901,1780077776000,-485.41396517,8.102e-05,2]
[423390905,1780077792000,-187.92024258,8.152e-05,2]
[423390926,1780077909000,5000.0,8.01e-05,2]
[423390927,1780077930000,5000.0,8.01e-05,2]
[423390928,1780077952000,5000.0,8.01e-05,2]
[423390929,1780077974000,5000.0,8.01e-05,2]
[423390930,1780077995000,5000.0,8.01e-05,2]
[423390932,1780078017000,5000.0,8.01e-05,2]
[423390933,1780078039000,3446.38637101,8.01e-05,2]
[423390937,1780078089000,5000.0,8.01e-05,2]
[423391000,1780078231000,-1000.0,0.00013699,2]
[423391015,1780078231000,-391.43948804,0.00014255,2]
[423390998,1780078231000,-1414.492961,0.00013699,2]
[423390996,1780078231000,-210.28139033,0.00013556,2]
[423390994,1780078231000,-152.0,0.00013018,7]
[423390990,1780078231000,-489.29570034,0.00012697,2]
[423390992,1780078231000,-152.0,0.00013018,7]
[423390979,1780078231000,-210.4748562,8.202e-05,2]
[423390980,1780078231000,-221.74588624,0.00010161,2]
[423390977,1780078231000,-187.92024258,8.161e-05,2]
[423390989,1780078231000,-1900.30762957,0.00012697,2]
[423390984,1780078231000,-255.57152991,0.00012161,2]
[423390975,1780078231000,-3273.85385474,8.12e-05,2]
[423390983,1780078231000,-151.12,0.00012,2]
[423390972,1780078231000,-469.74779629,8.12e-05,2]
[423390987,1780078231000,-767.15540412,0.00012497,2]
[423391011,1780078231000,-268.02360947,0.00014248,2]
[423391002,1780078231000,-499.475741,0.00013699,2]
[423391009,1780078231000,-500.0,0.00014166,2]
[423391040,1780078231000,-500.0,0.00014494,2]
[423391033,1780078231000,-500.0,0.00014494,2]
[423391036,1780078231000,-500.0,0.00014494,2]
[423391027,1780078231000,-152.0,0.00014324,30]
[423391038,1780078231000,-500.0,0.00014494,2]
[423391026,1780078231000,-156.66039112,0.00014319,2]
[423391032,1780078231000,-177.19651166,0.00014484,2]
[423391030,1780078231000,-359.9820018,0.00014473,2]
[423391022,1780078231000,-151.5,0.00014319,2]
[423391020,1780078231000,-617.42728758,0.00014319,2]
[423391019,1780078231000,-500.0,0.00014319,2]
[423391017,1780078231000,-500.0,0.00014319,2]
[423391004,1780078231000,-195.71974402,0.00013699,2]
[423391006,1780078231000,-289.39717357,0.00014161,2]
[423391024,1780078231000,-151.5,0.00014319,2]
[423391013,1780078231000,-152.53917119,0.00014248,2]
[423391088,1780078232000,-500.26695662,0.00014495,2]
[423391079,1780078232000,-500.26695662,0.00014495,2]
[423391080,1780078232000,-500.26695662,0.00014495,2]
[423391083,1780078232000,-500.26695662,0.00014495,2]
[423391077,1780078232000,-500.26695662,0.00014495,2]
[423391087,1780078232000,-500.26695662,0.00014495,2]
[423391081,1780078232000,-500.26695662,0.00014495,2]
[423391089,1780078232000,-500.26695662,0.00014495,2]
[423391093,1780078232000,-500.26695662,0.00014495,2]
[423391094,1780078232000,-500.26695662,0.00014495,2]
[423391098,1780078232000,-500.26695662,0.00014495,2]
[423391100,1780078232000,-500.26695662,0.00014495,2]
[423391091,1780078232000,-500.26695662,0.00014495,2]
[423391090,1780078232000,-500.26695662,0.00014495,2]
[423391085,1780078232000,-500.26695662,0.00014495,2]
[423391095,1780078232000,-500.26695662,0.00014495,2]
[423391099,1780078232000,-500.26695662,0.00014495,2]
[423391075,1780078232000,-500.26695662,0.00014495,2]
[423391050,1780078232000,-307.92533508,0.00014495,2]
[423391084,1780078232000,-500.26695662,0.00014495,2]
[423391042,1780078232000,-500.0,0.00014494,2]
[423391044,1780078232000,-500.0,0.00014494,2]
[423391046,1780078232000,-500.0,0.00014494,2]
[423391058,1780078232000,-500.26695662,0.00014495,2]
[423391048,1780078232000,-500.0,0.00014494,2]
[423391060,1780078232000,-500.26695662,0.00014495,2]
[423391062,1780078232000,-500.26695662,0.00014495,2]
[423391064,1780078232000,-500.26695662,0.00014495,2]
[423391055,1780078232000,-500.26695662,0.00014495,2]
[423391052,1780078232000,-500.26695662,0.00014495,2]
[423391097,1780078232000,-500.26695662,0.00014495,2]
[423391065,1780078232000,-500.26695662,0.00014495,2]
[423391067,1780078232000,-500.26695662,0.00014495,2]
[423391069,1780078232000,-500.26695662,0.00014495,2]
[423391071,1780078232000,-500.26695662,0.00014495,2]
[423391082,1780078232000,-500.26695662,0.00014495,2]
[423391073,1780078232000,-500.26695662,0.00014495,2]
[423391086,1780078232000,-500.26695662,0.00014495,2]
[423391092,1780078232000,-500.26695662,0.00014495,2]
[423391054,1780078232000,-500.26695662,0.00014495,2]
[423391102,1780078232000,-500.26695662,0.00014495,2]
[423391122,1780078232000,-500.26695662,0.00014495,2]
[423391116,1780078232000,-500.26695662,0.00014495,2]
[423391118,1780078232000,-500.26695662,0.00014495,2]
[423391124,1780078232000,-135.15367043,0.00014495,2]
[423391120,1780078232000,-500.26695662,0.00014495,2]
[423391129,1780078232000,-316.37658927,0.00014495,2]
[423391139,1780078232000,-31.62341073,0.00014495,2]
[423391128,1780078232000,-183.62341073,0.00014495,2]
[423391130,1780078232000,-500.0,0.00014495,2]
[423391131,1780078232000,-500.0,0.00014495,2]
[423391134,1780078232000,-500.0,0.00014495,2]
[423391135,1780078232000,-500.0,0.00014495,2]
[423391136,1780078232000,-500.0,0.00014495,2]
[423391132,1780078232000,-500.0,0.00014495,2]
[423391138,1780078232000,-500.0,0.00014495,2]
[423391137,1780078232000,-500.0,0.00014495,2]
[423391096,1780078232000,-500.26695662,0.00014495,2]
[423391127,1780078232000,-500.0,0.00014495,2]
[423391123,1780078232000,-364.84632957,0.00014495,2]
[423391133,1780078232000,-500.0,0.00014495,2]
[423391119,1780078232000,-500.26695662,0.00014495,2]
[423391113,1780078232000,-500.26695662,0.00014495,2]
[423391121,1780078232000,-500.26695662,0.00014495,2]
[423391103,1780078232000,-500.26695662,0.00014495,2]
[423391101,1780078232000,-500.26695662,0.00014495,2]
[423391108,1780078232000,-500.26695662,0.00014495,2]
[423391111,1780078232000,-500.26695662,0.00014495,2]
[423391105,1780078232000,-500.26695662,0.00014495,2]
[423391106,1780078232000,-500.26695662,0.00014495,2]
[423391112,1780078232000,-500.26695662,0.00014495,2]
[423391110,1780078232000,-500.26695662,0.00014495,2]
[423391109,1780078232000,-500.26695662,0.00014495,2]
[423391107,1780078232000,-500.26695662,0.00014495,2]
[423391114,1780078232000,-500.26695662,0.00014495,2]
[423391115,1780078232000,-500.26695662,0.00014495,2]
[423391125,1780078232000,-500.0,0.00014495,2]
[423391117,1780078232000,-500.26695662,0.00014495,2]
[423391104,1780078232000,-500.26695662,0.00014495,2]
[423391126,1780078232000,-500.0,0.00014495,2]
[423391194,1780078238000,-500.0,0.00014495,2]
[423391188,1780078238000,-500.0,0.00014495,2]
[423391191,1780078238000,-459.16268587,0.00014495,2]
[423391195,1780078238000,-500.0,0.00014495,2]
[423391190,1780078238000,-500.0,0.00014495,2]
[423391200,1780078238000,-500.0,0.00014495,2]
[423391208,1780078238000,-64251.18746472,0.00014496,2]
[423391201,1780078238000,-500.0,0.00014495,2]
[423391206,1780078238000,-500.0,0.00014495,2]
[423391207,1780078238000,-146896.81341716,0.00014496,2]
[423391205,1780078238000,-500.0,0.00014495,2]
[423391203,1780078238000,-500.0,0.00014495,2]
[423391193,1780078238000,-500.0,0.00014495,2]
[423391204,1780078238000,-500.0,0.00014495,2]
[423391199,1780078238000,-500.0,0.00014495,2]
[423391189,1780078238000,-308.16887234,0.00014495,2]
[423391184,1780078238000,-500.0,0.00014495,2]
[423391187,1780078238000,-500.0,0.00014495,2]
[423391202,1780078238000,-500.0,0.00014495,2]
[423391168,1780078238000,-500.65956743,0.00014494,2]
[423391171,1780078238000,-468.37658927,0.00014495,2]
[423391173,1780078238000,-500.0,0.00014495,2]
[423391179,1780078238000,-500.0,0.00014495,2]
[423391169,1780078238000,-500.0,0.00014494,2]
[423391181,1780078238000,-500.0,0.00014495,2]
[423391175,1780078238000,-500.0,0.00014495,2]
[423391183,1780078238000,-500.0,0.00014495,2]
[423391177,1780078238000,-500.0,0.00014495,2]
[423391186,1780078238000,-500.0,0.00014495,2]
[423391198,1780078238000,-500.0,0.00014495,2]
[423391197,1780078238000,-500.0,0.00014495,2]
[423391196,1780078238000,-500.0,0.00014495,2]
[423391185,1780078238000,-500.0,0.00014495,2]
[423391192,1780078238000,-500.0,0.00014495,2]
[423391210,1780078238000,-162.380719,0.00014584,2]
[423391235,1780078238000,-500.0,0.00014594,2]
[423391221,1780078238000,-500.0,0.00014592,2]
[423391220,1780078238000,-500.0,0.00014592,2]
[423391231,1780078238000,-500.0,0.00014594,2]
[423391233,1780078238000,-364.30531479,0.00014594,2]
[423391230,1780078238000,-500.0,0.00014594,2]
[423391237,1780078238000,-500.0,0.00014594,2]
[423391241,1780078238000,-500.0,0.00014595,2]
[423391242,1780078238000,-154.89285204,0.00014595,2]
[423391239,1780078238000,-500.0,0.00014595,2]
[423391236,1780078238000,-8174.9,0.00014594,2]
[423391240,1780078238000,-534.79,0.00014595,2]
[423391243,1780078238000,-150.307,0.00014595,2]
[423391238,1780078238000,-500.0,0.00014595,2]
[423391245,1780078238000,-117.18332503,0.00014595,2]
[423391244,1780078238000,-382.81667497,0.00014595,2]
[423391246,1780078238000,-191.1443504,0.00014595,2]
[423391228,1780078238000,-157.61316772,0.00014594,2]
[423391229,1780078238000,-210.70466555,0.00014594,2]
[423391232,1780078238000,-500.0,0.00014594,2]
[423391234,1780078238000,-135.69468521,0.00014594,2]
[423391209,1780078238000,-151.0,0.00014584,2]
[423391222,1780078238000,-500.0,0.00014592,2]
[423391211,1780078238000,-500.0,0.00014592,2]
[423391212,1780078238000,-500.0,0.00014592,2]
[423391215,1780078238000,-563.43,0.00014592,2]
[423391227,1780078238000,-501.61049014,0.00014594,2]
[423391213,1780078238000,-500.0,0.00014592,2]
[423391214,1780078238000,-558.75375313,0.00014592,2]
[423391219,1780078238000,-648.07,0.00014592,2]
[423391216,1780078238000,-500.0,0.00014592,2]
[423391218,1780078238000,-500.0,0.00014592,2]
[423391225,1780078238000,-500.0,0.00014594,2]
[423391226,1780078238000,-500.0,0.00014594,2]
[423391223,1780078238000,-500.0,0.00014594,2]
[423391224,1780078238000,-500.0,0.00014594,2]
[423391217,1780078238000,-500.0,0.00014592,2]
[423391284,1780078240000,-275.64386934,0.00014595,2]
[423391283,1780078240000,-33.21178026,0.00014595,2]
[423391282,1780078240000,-500.0,0.00014495,2]
[423391286,1780078240000,-519.52543859,0.00014595,2]
[423391285,1780078240000,-500.62697601,0.00014595,2]
[423391292,1780078240000,-207.46375943,0.00014595,2]
[423391288,1780078240000,-98.84428984,0.00014595,2]
[423391290,1780078240000,-500.0,0.00014595,2]
[423391289,1780078240000,-500.0,0.00014595,2]
[423391291,1780078240000,-500.0,0.00014595,2]
[423391287,1780078240000,-401.15571016,0.00014595,2]
[423391345,1780078243000,-500.0,0.00014597,2]
[423391344,1780078243000,-353.5959214,0.00014597,2]
[423391351,1780078243000,-500.0,0.00014597,2]
[423391343,1780078243000,-146.4040786,0.00014597,2]
[423391349,1780078243000,-501.27976218,0.00014597,2]
[423391346,1780078243000,-500.0,0.00014597,2]
[423391354,1780078243000,-500.0,0.00014597,2]
[423391350,1780078243000,-500.0,0.00014597,2]
[423391348,1780078243000,-500.0,0.00014597,2]
[423391352,1780078243000,-500.0,0.00014597,2]
[423391353,1780078243000,-500.0,0.00014597,2]
[423391355,1780078243000,-500.0,0.00014597,2]
[423391356,1780078243000,-500.0,0.00014597,2]
[423391360,1780078243000,-500.0,0.00014597,2]
[423391362,1780078243000,-500.0,0.00014597,2]
[423391358,1780078243000,-500.0,0.00014597,2]
[423391359,1780078243000,-500.0,0.00014597,2]
[423391361,1780078243000,-500.0,0.00014597,2]
[423391357,1780078243000,-500.0,0.00014597,2]
[423391363,1780078243000,-500.96094689,0.00014597,2]
[423391364,1780078243000,-500.0,0.00014597,2]
[423391366,1780078243000,-500.0,0.00014597,2]
[423391347,1780078243000,-500.0,0.00014597,2]
[423391332,1780078243000,-500.0,0.00014595,2]
[423391337,1780078243000,-500.0,0.00014595,2]
[423391339,1780078243000,-500.0,0.00014595,2]
[423391376,1780078243000,-500.0,0.00014597,2]
[423391319,1780078243000,-500.0,0.00014595,2]
[423391317,1780078243000,-292.53624057,0.00014595,2]
[423391320,1780078243000,-500.31529146,0.00014595,2]
[423391324,1780078243000,-500.0,0.00014595,2]
[423391318,1780078243000,-500.0,0.00014595,2]
[423391322,1780078243000,-219.11980041,0.00014595,2]
[423391326,1780078243000,-500.21298607,0.00014595,2]
[423391321,1780078243000,-500.28470861,0.00014595,2]
[423391328,1780078243000,-3357.5628,0.00014595,2]
[423391327,1780078243000,-501.04232744,0.00014595,2]
[423391325,1780078243000,-500.53229273,0.00014595,2]
[423391323,1780078243000,-280.88019959,0.00014595,2]
[423391330,1780078243000,-643.86843824,0.00014595,2]
[423391340,1780078243000,-500.0,0.00014597,2]
[423391342,1780078243000,-500.83470977,0.00014597,2]
[423391329,1780078243000,-500.0,0.00014595,2]
[423391341,1780078243000,-501.01949098,0.00014597,2]
[423391335,1780078243000,-500.0,0.00014595,2]
[423391336,1780078243000,-500.0,0.00014595,2]
[423391338,1780078243000,-500.0,0.00014595,2]
[423391331,1780078243000,-500.0,0.00014595,2]
[423391334,1780078243000,-532.57815947,0.00014595,2]
[423391333,1780078243000,-235.92655581,0.00014595,2]
[423391367,1780078243000,-500.0,0.00014597,2]
[423391414,1780078243000,-500.0,0.00014597,2]
[423391377,1780078243000,-500.0,0.00014597,2]
[423391395,1780078243000,-500.0,0.00014597,2]
[423391399,1780078243000,-500.0,0.00014597,2]
[423391396,1780078243000,-500.0,0.00014597,2]
[423391397,1780078243000,-567.55778632,0.00014597,2]
[423391403,1780078243000,-500.75767198,0.00014597,2]
[423391404,1780078243000,-500.0,0.00014597,2]
[423391400,1780078243000,-500.94277507,0.00014597,2]
[423391406,1780078243000,-500.0,0.00014597,2]
[423391410,1780078243000,-500.0,0.00014597,2]
[423391409,1780078243000,-500.0,0.00014597,2]
[423391392,1780078243000,-500.0,0.00014597,2]
[423391405,1780078243000,-500.0,0.00014597,2]
[423391417,1780078243000,-500.0,0.00014597,2]
[423391408,1780078243000,-500.43476969,0.00014597,2]
[423391407,1780078243000,-531.0107082,0.00014597,2]
[423391412,1780078243000,-500.0,0.00014597,2]
[423391418,1780078243000,-500.0,0.00014597,2]
[423391415,1780078243000,-500.0,0.00014597,2]
[423391413,1780078243000,-500.0,0.00014597,2]
[423391411,1780078243000,-500.0,0.00014597,2]
[423391419,1780078243000,-500.0,0.00014597,2]
[423391368,1780078243000,-500.0,0.00014597,2]
[423391416,1780078243000,-500.26391712,0.00014597,2]
[423391398,1780078243000,-500.61456742,0.00014597,2]
[423391401,1780078243000,-500.0,0.00014597,2]
[423391394,1780078243000,-500.0,0.00014597,2]
[423391365,1780078243000,-500.0,0.00014597,2]
[423391375,1780078243000,-500.0,0.00014597,2]
[423391371,1780078243000,-500.0,0.00014597,2]
[423391370,1780078243000,-500.0,0.00014597,2]
[423391393,1780078243000,-500.98329675,0.00014597,2]
[423391372,1780078243000,-500.0,0.00014597,2]
[423391369,1780078243000,-500.0,0.00014597,2]
[423391373,1780078243000,-500.0,0.00014597,2]
[423391379,1780078243000,-500.0,0.00014597,2]
[423391380,1780078243000,-500.0,0.00014597,2]
[423391378,1780078243000,-500.0,0.00014597,2]
[423391389,1780078243000,-500.0,0.00014597,2]
[423391374,1780078243000,-500.0,0.00014597,2]
[423391381,1780078243000,-500.0,0.00014597,2]
[423391390,1780078243000,-495.0,0.00014597,2]
[423391402,1780078243000,-500.0,0.00014597,2]
[423391391,1780078243000,-500.55069225,0.00014597,2]
[423391385,1780078243000,-500.0,0.00014597,2]
[423391384,1780078243000,-500.0,0.00014597,2]
[423391386,1780078243000,-500.0,0.00014597,2]
[423391383,1780078243000,-500.0,0.00014597,2]
[423391388,1780078243000,-500.0,0.00014597,2]
[423391382,1780078243000,-500.8855262,0.00014597,2]
[423391387,1780078243000,-500.2344118,0.00014597,2]
[423391437,1780078244000,-500.0,0.00014597,2]
[423391424,1780078244000,-500.0,0.00014597,2]
[423391434,1780078244000,-501.00053133,0.00014597,2]
[423391431,1780078244000,-500.0,0.00014597,2]
[423391432,1780078244000,-500.0,0.00014597,2]
[423391423,1780078244000,-557.92780392,0.00014597,2]
[423391427,1780078244000,-500.0,0.00014597,2]
[423391420,1780078244000,-500.0,0.00014597,2]
[423391426,1780078244000,-500.0,0.00014597,2]
[423391428,1780078244000,-500.0,0.00014597,2]
[423391422,1780078244000,-500.0,0.00014597,2]
[423391421,1780078244000,-500.0,0.00014597,2]
[423391429,1780078244000,-500.0,0.00014597,2]
[423391430,1780078244000,-512.0578181,0.00014597,2]
[423391440,1780078244000,-500.0,0.00014597,2]
[423391425,1780078244000,-436.26344689,0.00014597,2]
[423391433,1780078244000,-321.01133525,0.00014597,2]
[423391441,1780078244000,-500.0,0.00014597,2]
[423391435,1780078244000,-500.0,0.00014597,2]
[423391436,1780078244000,-501.55105572,0.00014597,2]
[423391453,1780078244000,-500.0,0.00014597,2]
[423391449,1780078244000,-501.75480119,0.00014597,2]
[423391454,1780078244000,-433.48832226,0.00014597,2]
[423391452,1780078244000,-500.0,0.00014597,2]
[423391451,1780078244000,-503.36622058,0.00014597,2]
[423391447,1780078244000,-500.0,0.00014597,2]
[423391448,1780078244000,-224.07,0.00014597,2]
[423391450,1780078244000,-500.0,0.00014597,2]
[423391446,1780078244000,-500.0,0.00014597,2]
[423391438,1780078244000,-500.0,0.00014597,2]
[423391443,1780078244000,-567.58,0.00014597,2]
[423391439,1780078244000,-512.80675414,0.00014597,2]
[423391442,1780078244000,-379.48617168,0.00014597,2]
[423391444,1780078244000,-500.0,0.00014597,2]
[423391445,1780078244000,-500.0,0.00014597,2]
[423391483,1780078246000,-500.0,0.00014597,2]
[423391488,1780078246000,-500.0,0.00014597,2]
[423391479,1780078246000,-500.0,0.00014597,2]
[423391476,1780078246000,-500.0,0.00014597,2]